[Event "Early-Titled-Tuesday-Blitz-January-23-2024"]
[Site "Chess.com"]
[Date "2024.01.23"]
[Round "1"]
[White "NovakRatko"]
[Black "ukchessbomber"]
[Result "0-1"]
[WhiteElo "2348"]
[BlackElo "2659"]
[TimeControl "180+1"]
[EndTime "8:01:37 PST"]
[Termination "ukchessbomber won by resignation"]

1. d4 {[%clk 0:02:58.4]} 1... a6 {[%clk 0:02:57.3]} 2. c4 {[%clk 0:02:58.3]}
2... b5 {[%clk 0:02:55.2]} 3. cxb5 {[%clk 0:02:56.4]} 3... axb5 {[%clk
0:02:55.1]} 4. e4 {[%clk 0:02:57.3]} 4... Bb7 {[%clk 0:02:55]} 5. f3 {[%clk
0:02:57.5]} 5... e6 {[%clk 0:02:52.5]} 6. Be3 {[%clk 0:02:56.3]} 6... Nf6 {[%clk
0:02:52]} 7. Bd3 {[%clk 0:02:56.3]} 7... d5 {[%clk 0:02:48.8]} 8. e5 {[%clk
0:02:55.9]} 8... Nfd7 {[%clk 0:02:48.1]} 9. Bxb5 {[%clk 0:02:56.1]} 9... Be7
{[%clk 0:02:47.5]} 10. Ne2 {[%clk 0:02:55.1]} 10... O-O {[%clk 0:02:47.5]} 11.
O-O {[%clk 0:02:55.1]} 11... c5 {[%clk 0:02:48.2]} 12. f4 {[%clk 0:02:51.7]}
12... Qb6 {[%clk 0:02:47.2]} 13. Bxd7 {[%clk 0:02:50.1]} 13... Nxd7 {[%clk
0:02:47.2]} 14. Qb3 {[%clk 0:02:49.7]} 14... Qxb3 {[%clk 0:02:39.8]} 15. axb3
{[%clk 0:02:49.8]} 15... Rxa1 {[%clk 0:02:40.7]} 0-1

[Event "Early-Titled-Tuesday-Blitz-January-23-2024"]
[Site "Chess.com"]
[Date "2024.01.23"]
[Round "1"]
[White "isaak2009"]
[Black "Boninknights"]
[Result "1-0"]
[WhiteElo "2646"]
[BlackElo "2331"]
[TimeControl "180+1"]
[EndTime "8:03:05 PST"]
[Termination "isaak2009 won by resignation"]

1. Nf3 {[%clk 0:02:59]} 1... Nf6 {[%clk 0:02:59]} 2. g3 {[%clk 0:02:59.6]} 2...
g6 {[%clk 0:02:58.2]} 3. Bg2 {[%clk 0:03:00.1]} 3... Bg7 {[%clk 0:02:57.8]} 4.
O-O {[%clk 0:03:01]} 4... O-O {[%clk 0:02:57.2]} 5. d3 {[%clk 0:03:01.5]} 5...
d5 {[%clk 0:02:56]} 6. Nbd2 {[%clk 0:02:59.1]} 6... Nc6 {[%clk 0:02:54.7]} 7. e4
{[%clk 0:02:59.2]} 7... e5 {[%clk 0:02:53.6]} 8. c3 {[%clk 0:02:56.4]} 8... a5
{[%clk 0:02:52.1]} 9. a4 {[%clk 0:02:50.6]} 9... h6 {[%clk 0:02:50.7]} 10. Qc2
{[%clk 0:02:49.7]} 10... Re8 {[%clk 0:02:47.9]} 11. exd5 {[%clk 0:02:49]} 11...
Nxd5 {[%clk 0:02:46.6]} 12. Nc4 {[%clk 0:02:49.9]} 12... Bf5 {[%clk 0:02:41]}
13. Nh4 {[%clk 0:02:48.4]} 13... Ndb4 {[%clk 0:02:37.8]} 14. cxb4 {[%clk
0:02:42.5]} 14... Bxd3 {[%clk 0:02:34.2]} 15. Qb3 {[%clk 0:02:38.4]} 15... e4
{[%clk 0:02:28.4]} 16. Be3 {[%clk 0:02:22]} 16... Bxf1 {[%clk 0:02:18.2]} 17.
Bxf1 {[%clk 0:02:20.9]} 17... axb4 {[%clk 0:02:16.7]} 18. Rd1 {[%clk 0:02:19.2]}
18... Nd4 {[%clk 0:02:14.3]} 19. Bxd4 {[%clk 0:02:15.9]} 19... Bxd4 {[%clk
0:02:12.5]} 20. Nxg6 {[%clk 0:02:10.8]} 20... fxg6 {[%clk 0:02:02.1]} 21. Ne5+
{[%clk 0:02:03.7]} 1-0

[Event "Early-Titled-Tuesday-Blitz-January-23-2024"]
[Site "Chess.com"]
[Date "2024.01.23"]
[Round "1"]
[White "Denis_Makhnyov"]
[Black "anasta10"]
[Result "1-0"]
[WhiteElo "3017"]
[BlackElo "2521"]
[TimeControl "180+1"]
[EndTime "8:03:06 PST"]
[Termination "Denis_Makhnyov won by resignation"]

1. d4 {[%clk 0:03:00.9]} 1... Nf6 {[%clk 0:02:58.7]} 2. c4 {[%clk 0:03:01.4]}
2... e6 {[%clk 0:02:58.5]} 3. Nc3 {[%clk 0:03:01.9]} 3... d5 {[%clk 0:02:59.2]}
4. cxd5 {[%clk 0:03:01.5]} 4... exd5 {[%clk 0:03:00.1]} 5. Bg5 {[%clk 0:03:02]}
5... Be7 {[%clk 0:02:58.8]} 6. e3 {[%clk 0:03:02.3]} 6... c6 {[%clk 0:02:58.8]}
7. Bd3 {[%clk 0:03:02.6]} 7... Bg4 {[%clk 0:02:47.9]} 8. Qc2 {[%clk 0:03:00]}
8... h6 {[%clk 0:02:46.9]} 9. Bh4 {[%clk 0:02:59.3]} 9... Nbd7 {[%clk
0:02:45.8]} 10. Nge2 {[%clk 0:02:58.7]} 10... Nf8 {[%clk 0:02:44.4]} 11. h3
{[%clk 0:02:58]} 11... Bh5 {[%clk 0:02:41.6]} 12. Bxf6 {[%clk 0:02:53.1]} 12...
Bxf6 {[%clk 0:02:41.2]} 13. Nf4 {[%clk 0:02:53.8]} 13... g6 {[%clk 0:02:34.6]}
14. g4 {[%clk 0:02:52.9]} 14... Bxg4 {[%clk 0:02:22.9]} 15. hxg4 {[%clk
0:02:52.5]} 15... Qd7 {[%clk 0:02:23.8]} 16. Qe2 {[%clk 0:02:48.3]} 16... O-O-O
{[%clk 0:02:22.6]} 17. O-O-O {[%clk 0:02:48.6]} 17... Re8 {[%clk 0:02:22.7]} 18.
Qf3 {[%clk 0:02:48.8]} 18... Bg5 {[%clk 0:02:20.7]} 19. Kb1 {[%clk 0:02:48.9]}
19... Qd6 {[%clk 0:02:14.9]} 20. Nfe2 {[%clk 0:02:46.7]} 20... Re7 {[%clk
0:02:04.2]} 21. e4 {[%clk 0:02:45.6]} 21... dxe4 {[%clk 0:01:52]} 22. Nxe4
{[%clk 0:02:46.5]} 22... Qd5 {[%clk 0:01:52.7]} 23. N2c3 {[%clk 0:02:46.6]}
23... Qa5 {[%clk 0:01:52.1]} 24. d5 {[%clk 0:02:46.1]} 24... Rg8 {[%clk
0:01:32.4]} 25. Nxg5 {[%clk 0:02:46]} 25... hxg5 {[%clk 0:01:33.3]} 26. dxc6
{[%clk 0:02:46.7]} 26... Ne6 {[%clk 0:01:32.3]} 27. Nd5 {[%clk 0:02:44.2]} 1-0

[Event "Early-Titled-Tuesday-Blitz-January-23-2024"]
[Site "Chess.com"]
[Date "2024.01.23"]
[Round "1"]
[White "dosto07"]
[Black "tarno17"]
[Result "1-0"]
[WhiteElo "2556"]
[BlackElo "2071"]
[TimeControl "180+1"]
[EndTime "8:03:17 PST"]
[Termination "dosto07 won by resignation"]

1. e4 {[%clk 0:03:00.9]} 1... c5 {[%clk 0:02:59.9]} 2. Nf3 {[%clk 0:03:00.4]}
2... e6 {[%clk 0:02:57.6]} 3. c3 {[%clk 0:02:59.8]} 3... d5 {[%clk 0:02:56.1]}
4. exd5 {[%clk 0:02:59.7]} 4... Qxd5 {[%clk 0:02:57]} 5. d4 {[%clk 0:02:59.9]}
5... Nf6 {[%clk 0:02:57.5]} 6. Na3 {[%clk 0:03:00.2]} 6... a6 {[%clk 0:02:56.2]}
7. Nc4 {[%clk 0:02:58.5]} 7... Qd8 {[%clk 0:02:52]} 8. g3 {[%clk 0:02:48.3]}
8... b5 {[%clk 0:02:38.1]} 9. Nce5 {[%clk 0:02:48.1]} 9... Bb7 {[%clk
0:02:36.5]} 10. Bg2 {[%clk 0:02:48]} 10... cxd4 {[%clk 0:02:32.5]} 11. O-O
{[%clk 0:02:44.3]} 11... Bd6 {[%clk 0:02:09.4]} 12. Nxf7 {[%clk 0:02:32.9]}
12... Kxf7 {[%clk 0:01:49.4]} 13. Ng5+ {[%clk 0:02:32.6]} 13... Kg6 {[%clk
0:01:32.8]} 14. Bxb7 {[%clk 0:02:31.2]} 14... Ra7 {[%clk 0:01:27.4]} 15. Qd3+
{[%clk 0:02:23]} 15... Kh5 {[%clk 0:01:18.4]} 16. Bf3+ {[%clk 0:02:21.3]} 1-0

[Event "Early-Titled-Tuesday-Blitz-January-23-2024"]
[Site "Chess.com"]
[Date "2024.01.23"]
[Round "1"]
[White "GlennTipton"]
[Black "amintabatabaei"]
[Result "0-1"]
[WhiteElo "2521"]
[BlackElo "3025"]
[TimeControl "180+1"]
[EndTime "8:03:23 PST"]
[Termination "amintabatabaei won by resignation"]

1. e4 {[%clk 0:02:59.4]} 1... c6 {[%clk 0:03:00.3]} 2. d4 {[%clk 0:02:58.1]}
2... g6 {[%clk 0:03:01.2]} 3. f4 {[%clk 0:02:57.3]} 3... d5 {[%clk 0:03:01]} 4.
e5 {[%clk 0:02:57.1]} 4... h5 {[%clk 0:03:01.4]} 5. Nf3 {[%clk 0:02:57.3]} 5...
Bg4 {[%clk 0:03:01.7]} 6. Be3 {[%clk 0:02:56.5]} 6... e6 {[%clk 0:03:02.1]} 7.
Nbd2 {[%clk 0:02:55.6]} 7... Qc7 {[%clk 0:02:59.7]} 8. h3 {[%clk 0:02:53.7]}
8... Bxf3 {[%clk 0:03:00]} 9. Nxf3 {[%clk 0:02:54.6]} 9... c5 {[%clk 0:02:59.3]}
10. c3 {[%clk 0:02:54.6]} 10... a6 {[%clk 0:02:56.1]} 11. Qa4+ {[%clk
0:02:40.9]} 11... Nd7 {[%clk 0:02:55.2]} 12. Bb5 {[%clk 0:02:30.3]} 12... Rd8
{[%clk 0:02:55]} 13. Bxd7+ {[%clk 0:02:28.4]} 13... Rxd7 {[%clk 0:02:55.9]} 14.
dxc5 {[%clk 0:02:22.9]} 14... Bxc5 {[%clk 0:02:56.8]} 15. Bxc5 {[%clk
0:02:23.3]} 15... Qxc5 {[%clk 0:02:57.5]} 16. Nd4 {[%clk 0:02:23.8]} 16... Ne7
{[%clk 0:02:55.5]} 17. a3 {[%clk 0:02:22.9]} 17... Nf5 {[%clk 0:02:54.1]} 18.
Nxf5 {[%clk 0:02:21.1]} 18... gxf5 {[%clk 0:02:55]} 19. Qd4 {[%clk 0:02:00.6]}
19... Qxd4 {[%clk 0:02:51]} 20. cxd4 {[%clk 0:02:00.7]} 20... Rc7 {[%clk
0:02:51.9]} 21. Kd2 {[%clk 0:02:00.2]} 21... Rg8 {[%clk 0:02:51.8]} 22. Rhg1
{[%clk 0:01:59.7]} 22... Rg3 {[%clk 0:02:52.5]} 23. Rac1 {[%clk 0:01:59.5]}
23... Rxc1 {[%clk 0:02:51.6]} 24. Kxc1 {[%clk 0:01:59.6]} 24... h4 {[%clk
0:02:51.5]} 25. Kd2 {[%clk 0:01:58.8]} 25... Kd7 {[%clk 0:02:52.1]} 26. Ke2
{[%clk 0:01:59]} 26... a5 {[%clk 0:02:50.7]} 27. a4 {[%clk 0:01:55.4]} 27... Rb3
{[%clk 0:02:49.7]} 28. Rb1 {[%clk 0:01:54.9]} 28... Rb4 {[%clk 0:02:50.3]} 29.
Kd3 {[%clk 0:01:50.4]} 29... Rxa4 {[%clk 0:02:49.4]} 30. Rc1 {[%clk 0:01:50.7]}
30... Rb4 {[%clk 0:02:49.1]} 31. Rc2 {[%clk 0:01:46.2]} 31... Rb3+ {[%clk
0:02:49.3]} 32. Ke2 {[%clk 0:01:45.5]} 32... a4 {[%clk 0:02:49.8]} 33. Kf2
{[%clk 0:01:43]} 33... b5 {[%clk 0:02:50.4]} 34. Ke2 {[%clk 0:01:40.6]} 34... b4
{[%clk 0:02:51]} 35. Kf2 {[%clk 0:01:40.5]} 35... a3 {[%clk 0:02:51.3]} 36. bxa3
{[%clk 0:01:40.9]} 36... bxa3 {[%clk 0:02:52.2]} 37. Kg1 {[%clk 0:01:39.3]}
37... Rb4 {[%clk 0:02:50.3]} 0-1

[Event "Early-Titled-Tuesday-Blitz-January-23-2024"]
[Site "Chess.com"]
[Date "2024.01.23"]
[Round "1"]
[White "hurricane7791"]
[Black "PenguinPacks"]
[Result "0-1"]
[WhiteElo "2689"]
[BlackElo "2411"]
[TimeControl "180+1"]
[EndTime "8:03:52 PST"]
[Termination "PenguinPacks won by checkmate"]

1. d4 {[%clk 0:03:00.9]} 1... Nf6 {[%clk 0:02:57.8]} 2. c4 {[%clk 0:02:59.5]}
2... e6 {[%clk 0:02:58.1]} 3. Nf3 {[%clk 0:02:58.1]} 3... Bb4+ {[%clk
0:02:56.6]} 4. Nbd2 {[%clk 0:02:57]} 4... Qe7 {[%clk 0:02:51.5]} 5. a3 {[%clk
0:02:56.7]} 5... Bxd2+ {[%clk 0:02:49.9]} 6. Qxd2 {[%clk 0:02:57.6]} 6... a5
{[%clk 0:02:49.2]} 7. b3 {[%clk 0:02:57.6]} 7... d6 {[%clk 0:02:47.4]} 8. e3
{[%clk 0:02:57.9]} 8... Nc6 {[%clk 0:02:47.5]} 9. Be2 {[%clk 0:02:58.1]} 9... e5
{[%clk 0:02:47.6]} 10. O-O {[%clk 0:02:57.2]} 10... O-O {[%clk 0:02:47]} 11. h3
{[%clk 0:02:56.2]} 11... Bf5 {[%clk 0:02:44.8]} 12. Bb2 {[%clk 0:02:56.3]} 12...
Bg6 {[%clk 0:02:04.4]} 13. Rad1 {[%clk 0:02:55]} 13... Ne4 {[%clk 0:01:59.8]}
14. Qc1 {[%clk 0:02:54.8]} 14... f5 {[%clk 0:01:58.9]} 15. c5 {[%clk 0:02:48.7]}
15... Kh8 {[%clk 0:01:48.2]} 16. cxd6 {[%clk 0:02:45.7]} 16... cxd6 {[%clk
0:01:49.1]} 17. Bb5 {[%clk 0:02:41.6]} 17... exd4 {[%clk 0:01:46.3]} 18. Nxd4
{[%clk 0:02:40.7]} 18... Rac8 {[%clk 0:01:39.7]} 19. Qa1 {[%clk 0:02:37.4]}
19... f4 {[%clk 0:01:35.9]} 20. exf4 {[%clk 0:02:34]} 20... Rxf4 {[%clk
0:01:34.1]} 21. f3 {[%clk 0:02:32.4]} 21... Ng3 {[%clk 0:01:27.2]} 22. Rfe1
{[%clk 0:02:31.3]} 22... Ne5 {[%clk 0:01:27.4]} 23. Ne2 {[%clk 0:02:14.4]} 23...
Nxf3+ {[%clk 0:01:19]} 24. gxf3 {[%clk 0:02:13.2]} 24... Qe3+ {[%clk 0:01:19.7]}
25. Kh2 {[%clk 0:01:59.2]} 25... Qf2# {[%clk 0:01:17.6]} 0-1

[Event "Early-Titled-Tuesday-Blitz-January-23-2024"]
[Site "Chess.com"]
[Date "2024.01.23"]
[Round "1"]
[White "JeFumeDesClopes"]
[Black "ElCoachRene"]
[Result "1-0"]
[WhiteElo "2547"]
[BlackElo "1912"]
[TimeControl "180+1"]
[EndTime "8:03:57 PST"]
[Termination "JeFumeDesClopes won by resignation"]

1. Nf3 {[%clk 0:03:00.9]} 1... d5 {[%clk 0:02:59.3]} 2. g3 {[%clk 0:02:56.8]}
2... Bf5 {[%clk 0:02:58.7]} 3. Bg2 {[%clk 0:02:56.5]} 3... e6 {[%clk 0:02:59.2]}
4. c4 {[%clk 0:02:55.9]} 4... c6 {[%clk 0:02:59]} 5. O-O {[%clk 0:02:53.9]} 5...
h6 {[%clk 0:02:57.3]} 6. Qb3 {[%clk 0:02:52.8]} 6... Qb6 {[%clk 0:02:56.4]} 7.
d3 {[%clk 0:02:53.4]} 7... Nd7 {[%clk 0:02:53.8]} 8. Be3 {[%clk 0:02:51.8]} 8...
Qxb3 {[%clk 0:02:51.7]} 9. axb3 {[%clk 0:02:52.7]} 9... a6 {[%clk 0:02:50.2]}
10. Bd4 {[%clk 0:02:46.9]} 10... Ngf6 {[%clk 0:02:48.4]} 11. Bc3 {[%clk
0:02:43.4]} 11... Be7 {[%clk 0:02:43.6]} 12. Nbd2 {[%clk 0:02:43.2]} 12... O-O
{[%clk 0:02:42.7]} 13. Rfd1 {[%clk 0:02:40]} 13... Rfe8 {[%clk 0:02:39.6]} 14.
b4 {[%clk 0:02:35.5]} 14... Bd6 {[%clk 0:02:23.1]} 15. e4 {[%clk 0:02:19.5]}
15... dxe4 {[%clk 0:02:18.5]} 16. dxe4 {[%clk 0:02:20.4]} 16... Bxe4 {[%clk
0:02:03.7]} 17. Nxe4 {[%clk 0:02:18.9]} 17... Nxe4 {[%clk 0:02:02.8]} 18. Ne1
{[%clk 0:01:38.5]} 18... Nxc3 {[%clk 0:01:59.2]} 19. Rxd6 {[%clk 0:01:34.2]}
19... Ne5 {[%clk 0:01:34.7]} 20. bxc3 {[%clk 0:01:32.9]} 20... Nxc4 {[%clk
0:01:33.7]} 21. Rd7 {[%clk 0:01:32.1]} 1-0

[Event "Early-Titled-Tuesday-Blitz-January-23-2024"]
[Site "Chess.com"]
[Date "2024.01.23"]
[Round "1"]
[White "HajiyevKanan"]
[Black "invisible_s0ul"]
[Result "1-0"]
[WhiteElo "2604"]
[BlackElo "2251"]
[TimeControl "180+1"]
[EndTime "8:04:01 PST"]
[Termination "HajiyevKanan won by checkmate"]

1. d4 {[%clk 0:03:00.9]} 1... d5 {[%clk 0:02:55.9]} 2. c4 {[%clk 0:03:00]} 2...
e6 {[%clk 0:02:54]} 3. cxd5 {[%clk 0:02:59.6]} 3... exd5 {[%clk 0:02:54.9]} 4.
Nc3 {[%clk 0:03:00.1]} 4... Nf6 {[%clk 0:02:55]} 5. Nf3 {[%clk 0:03:00.6]} 5...
Bd6 {[%clk 0:02:53.3]} 6. Bg5 {[%clk 0:02:59.8]} 6... c6 {[%clk 0:02:53.4]} 7.
Qc2 {[%clk 0:02:59.1]} 7... Nbd7 {[%clk 0:02:53]} 8. e3 {[%clk 0:02:54.5]} 8...
Nf8 {[%clk 0:02:52.9]} 9. Bd3 {[%clk 0:02:53.9]} 9... Ng6 {[%clk 0:02:39.8]} 10.
Nh4 {[%clk 0:02:51.7]} 10... Nxh4 {[%clk 0:02:06.9]} 11. Bxh4 {[%clk 0:02:52.6]}
11... Be6 {[%clk 0:01:55.5]} 12. O-O {[%clk 0:02:51.2]} 12... Qc7 {[%clk
0:01:52.3]} 13. f4 {[%clk 0:02:49.4]} 13... Ng4 {[%clk 0:01:45.6]} 14. Rae1
{[%clk 0:02:46.8]} 14... O-O {[%clk 0:01:37.8]} 15. h3 {[%clk 0:02:43.2]} 15...
Nh6 {[%clk 0:01:28.7]} 16. Bxh7+ {[%clk 0:02:42.1]} 16... Kh8 {[%clk 0:01:29.3]}
17. Bd3 {[%clk 0:02:42.4]} 17... f5 {[%clk 0:01:24.6]} 18. Bg5 {[%clk
0:02:35.2]} 18... Qd7 {[%clk 0:01:08.1]} 19. Nb1 {[%clk 0:02:32]} 19... Nf7
{[%clk 0:01:05.5]} 20. Bh4 {[%clk 0:02:28.9]} 20... Rac8 {[%clk 0:01:01.2]} 21.
Qe2 {[%clk 0:02:18.1]} 21... c5 {[%clk 0:00:54.9]} 22. Qh5+ {[%clk 0:02:17.2]}
22... Kg8 {[%clk 0:00:51.4]} 23. g4 {[%clk 0:02:17.7]} 23... fxg4 {[%clk
0:00:51]} 24. Qh7# {[%clk 0:02:17.4]} 1-0

[Event "Early-Titled-Tuesday-Blitz-January-23-2024"]
[Site "Chess.com"]
[Date "2024.01.23"]
[Round "1"]
[White "Brave_spirit12"]
[Black "chess_blitz00"]
[Result "0-1"]
[WhiteElo "2773"]
[BlackElo "2455"]
[TimeControl "180+1"]
[EndTime "8:04:08 PST"]
[Termination "chess_blitz00 won by resignation"]

1. e4 {[%clk 0:02:57.2]} 1... c5 {[%clk 0:02:57]} 2. c3 {[%clk 0:02:56.6]} 2...
e6 {[%clk 0:02:51.5]} 3. d4 {[%clk 0:02:56.5]} 3... cxd4 {[%clk 0:02:50.3]} 4.
cxd4 {[%clk 0:02:57.4]} 4... d5 {[%clk 0:02:49.2]} 5. Nc3 {[%clk 0:02:56]} 5...
dxe4 {[%clk 0:02:48.1]} 6. Nxe4 {[%clk 0:02:56.9]} 6... Bd7 {[%clk 0:02:44.5]}
7. Nf3 {[%clk 0:02:56.7]} 7... Bc6 {[%clk 0:02:44.4]} 8. Bd3 {[%clk 0:02:56.1]}
8... Nf6 {[%clk 0:02:39.6]} 9. Nxf6+ {[%clk 0:02:55.8]} 9... Qxf6 {[%clk
0:02:40.5]} 10. Bg5 {[%clk 0:02:47.9]} 10... Bxf3 {[%clk 0:02:40.2]} 11. Qd2
{[%clk 0:02:48.1]} 11... Bb4 {[%clk 0:02:28.9]} 12. Qxb4 {[%clk 0:02:43.8]}
12... Qxg5 {[%clk 0:02:26.6]} 13. gxf3 {[%clk 0:02:44.5]} 13... Nd7 {[%clk
0:02:10.3]} 14. Qxb7 {[%clk 0:02:28.6]} 14... Rb8 {[%clk 0:02:06.6]} 15. Qxa7
{[%clk 0:02:20.1]} 15... Rxb2 {[%clk 0:01:47.8]} 16. Qa8+ {[%clk 0:02:09]} 16...
Rb8 {[%clk 0:01:47.1]} 17. Qe4 {[%clk 0:02:04.7]} 17... Ke7 {[%clk 0:00:46.5]}
0-1

[Event "Early-Titled-Tuesday-Blitz-January-23-2024"]
[Site "Chess.com"]
[Date "2024.01.23"]
[Round "1"]
[White "BilodeauA"]
[Black "Irishchessman16"]
[Result "1-0"]
[WhiteElo "2924"]
[BlackElo "2501"]
[TimeControl "180+1"]
[EndTime "8:04:11 PST"]
[Termination "BilodeauA won by checkmate"]

1. e4 {[%clk 0:03:00.9]} 1... c5 {[%clk 0:02:32.3]} 2. Nf3 {[%clk 0:02:59.8]}
2... Nc6 {[%clk 0:02:30.6]} 3. Nc3 {[%clk 0:02:58.7]} 3... e5 {[%clk 0:02:29.9]}
4. Bc4 {[%clk 0:02:58.6]} 4... Be7 {[%clk 0:02:29.7]} 5. d3 {[%clk 0:02:59.2]}
5... d6 {[%clk 0:02:29.7]} 6. Nd2 {[%clk 0:02:59.4]} 6... Nf6 {[%clk 0:02:28.5]}
7. Nf1 {[%clk 0:02:58.1]} 7... Be6 {[%clk 0:02:27.6]} 8. Ne3 {[%clk 0:02:56.9]}
8... O-O {[%clk 0:02:27.1]} 9. O-O {[%clk 0:02:57]} 9... Nd7 {[%clk 0:02:26.1]}
10. Ned5 {[%clk 0:02:50.2]} 10... Bg5 {[%clk 0:02:25.7]} 11. Bxg5 {[%clk
0:02:40.5]} 11... Qxg5 {[%clk 0:02:25.1]} 12. Nc7 {[%clk 0:02:40.9]} 12... Bh3
{[%clk 0:01:46]} 13. Qf3 {[%clk 0:02:40.8]} 13... Bg4 {[%clk 0:01:45.5]} 14. Qg3
{[%clk 0:02:40.9]} 14... Rac8 {[%clk 0:01:42.5]} 15. N7b5 {[%clk 0:02:41.1]}
15... Nd4 {[%clk 0:01:29.8]} 16. h3 {[%clk 0:02:32.6]} 16... h5 {[%clk
0:01:13.6]} 17. hxg4 {[%clk 0:02:32.6]} 17... h4 {[%clk 0:01:13.4]} 18. Qh3
{[%clk 0:02:27.2]} 18... Nf6 {[%clk 0:01:11.4]} 19. Nxd6 {[%clk 0:02:20.8]}
19... Rc6 {[%clk 0:01:11.1]} 20. Nf5 {[%clk 0:02:02.4]} 20... Nxg4 {[%clk
0:01:10.8]} 21. Qxh4 {[%clk 0:01:50.7]} 21... Qf4 {[%clk 0:01:07.9]} 22. Ne7#
{[%clk 0:01:50.1]} 1-0

[Event "Early-Titled-Tuesday-Blitz-January-23-2024"]
[Site "Chess.com"]
[Date "2024.01.23"]
[Round "1"]
[White "GHANDEEVAM2003"]
[Black "Mistango"]
[Result "1-0"]
[WhiteElo "3026"]
[BlackElo "2523"]
[TimeControl "180+1"]
[EndTime "8:04:20 PST"]
[Termination "GHANDEEVAM2003 won by resignation"]

1. c4 {[%clk 0:03:00.9]} 1... Nf6 {[%clk 0:03:00.1]} 2. g3 {[%clk 0:03:00.9]}
2... g6 {[%clk 0:03:00.3]} 3. Bg2 {[%clk 0:03:00.9]} 3... Bg7 {[%clk 0:03:00.9]}
4. Nc3 {[%clk 0:03:01.3]} 4... O-O {[%clk 0:03:01.3]} 5. e3 {[%clk 0:03:01.6]}
5... c5 {[%clk 0:02:59.5]} 6. Nge2 {[%clk 0:03:01.6]} 6... Nc6 {[%clk
0:02:54.8]} 7. O-O {[%clk 0:03:01.1]} 7... b6 {[%clk 0:02:36.8]} 8. d4 {[%clk
0:03:00.1]} 8... cxd4 {[%clk 0:02:37.1]} 9. exd4 {[%clk 0:03:01]} 9... Bb7
{[%clk 0:02:36.7]} 10. Be3 {[%clk 0:03:00.5]} 10... d6 {[%clk 0:02:36.2]} 11.
Qd2 {[%clk 0:03:00.1]} 11... Rc8 {[%clk 0:02:33.5]} 12. Bh6 {[%clk 0:02:59.6]}
12... Qd7 {[%clk 0:02:22.9]} 13. Bxg7 {[%clk 0:02:55.1]} 13... Kxg7 {[%clk
0:02:23.8]} 14. b3 {[%clk 0:02:52.9]} 14... h5 {[%clk 0:01:40.4]} 15. h3 {[%clk
0:02:50.3]} 15... Rfe8 {[%clk 0:01:31]} 16. d5 {[%clk 0:02:50.3]} 16... Nb8
{[%clk 0:01:27.8]} 17. Nd4 {[%clk 0:02:50.1]} 17... a6 {[%clk 0:01:19.5]} 18.
Rfe1 {[%clk 0:02:47.7]} 18... Qc7 {[%clk 0:01:10.4]} 19. Qg5 {[%clk 0:02:45.5]}
19... Kh7 {[%clk 0:01:06.5]} 20. Ne4 {[%clk 0:02:44.1]} 20... Nbd7 {[%clk
0:01:03.2]} 21. Re3 {[%clk 0:02:42.6]} 21... Nxe4 {[%clk 0:00:54.9]} 22. Bxe4
{[%clk 0:02:41.8]} 22... Nf6 {[%clk 0:00:55.6]} 23. Rae1 {[%clk 0:02:40.3]}
23... Nxe4 {[%clk 0:00:41]} 24. Rxe4 {[%clk 0:02:41.2]} 24... e5 {[%clk
0:00:26.8]} 25. Nf5 {[%clk 0:02:41.3]} 25... gxf5 {[%clk 0:00:20]} 26. Rh4
{[%clk 0:02:40.8]} 1-0

[Event "Early-Titled-Tuesday-Blitz-January-23-2024"]
[Site "Chess.com"]
[Date "2024.01.23"]
[Round "1"]
[White "KNVB"]
[Black "Magila31"]
[Result "1-0"]
[WhiteElo "2753"]
[BlackElo "2427"]
[TimeControl "180+1"]
[EndTime "8:04:28 PST"]
[Termination "KNVB won by resignation"]

1. d4 {[%clk 0:03:00.9]} 1... Nf6 {[%clk 0:02:58.7]} 2. Bf4 {[%clk 0:02:53.7]}
2... d6 {[%clk 0:02:56.4]} 3. e3 {[%clk 0:02:51.4]} 3... g6 {[%clk 0:02:56.3]}
4. h3 {[%clk 0:02:50.1]} 4... Bg7 {[%clk 0:02:56.2]} 5. Nf3 {[%clk 0:02:49.1]}
5... O-O {[%clk 0:02:56]} 6. c3 {[%clk 0:02:48.2]} 6... b6 {[%clk 0:02:54.4]} 7.
a4 {[%clk 0:02:48]} 7... a5 {[%clk 0:02:52.2]} 8. Na3 {[%clk 0:02:44.4]} 8...
Bb7 {[%clk 0:02:52.3]} 9. Be2 {[%clk 0:02:44.9]} 9... Nbd7 {[%clk 0:02:50.1]}
10. O-O {[%clk 0:02:44.8]} 10... Re8 {[%clk 0:02:43.5]} 11. Bh2 {[%clk
0:02:43.6]} 11... e6 {[%clk 0:02:41.8]} 12. Re1 {[%clk 0:02:36.5]} 12... Ne4
{[%clk 0:02:33.6]} 13. Nb5 {[%clk 0:02:32.1]} 13... Ndf6 {[%clk 0:02:28.8]} 14.
Bf1 {[%clk 0:02:26.6]} 14... Nd5 {[%clk 0:02:27]} 15. Nd2 {[%clk 0:02:17.7]}
15... Nxd2 {[%clk 0:02:25]} 16. Qxd2 {[%clk 0:02:18.6]} 16... f5 {[%clk
0:02:22.1]} 17. e4 {[%clk 0:01:40.6]} 17... Nf6 {[%clk 0:02:21]} 18. e5 {[%clk
0:01:29]} 18... dxe5 {[%clk 0:02:17.3]} 19. Bxe5 {[%clk 0:01:06.6]} 19... Ne4
{[%clk 0:02:17]} 20. Qf4 {[%clk 0:00:51]} 1-0

[Event "Early-Titled-Tuesday-Blitz-January-23-2024"]
[Site "Chess.com"]
[Date "2024.01.23"]
[Round "1"]
[White "FMCarmona"]
[Black "Young_Catalan_Player09"]
[Result "0-1"]
[WhiteElo "2158"]
[BlackElo "2566"]
[TimeControl "180+1"]
[EndTime "8:04:33 PST"]
[Termination "Young_Catalan_Player09 won by resignation"]

1. e4 {[%clk 0:03:00.9]} 1... c5 {[%clk 0:02:58.8]} 2. Nf3 {[%clk 0:02:57.6]}
2... d6 {[%clk 0:02:57.9]} 3. d4 {[%clk 0:02:56.5]} 3... cxd4 {[%clk 0:02:54.3]}
4. Nxd4 {[%clk 0:02:57.4]} 4... Nf6 {[%clk 0:02:53.9]} 5. Nc3 {[%clk 0:02:57.5]}
5... a6 {[%clk 0:02:53]} 6. Be3 {[%clk 0:02:55.1]} 6... e5 {[%clk 0:02:52.5]} 7.
Nb3 {[%clk 0:02:52.8]} 7... Be7 {[%clk 0:02:50.8]} 8. f3 {[%clk 0:02:46.5]} 8...
Be6 {[%clk 0:02:49.7]} 9. Qd2 {[%clk 0:02:46.4]} 9... O-O {[%clk 0:02:46.8]} 10.
O-O-O {[%clk 0:02:46.6]} 10... Nbd7 {[%clk 0:02:46.3]} 11. g4 {[%clk 0:02:46]}
11... b5 {[%clk 0:02:36.5]} 12. g5 {[%clk 0:02:36]} 12... Nh5 {[%clk 0:02:31.4]}
13. h4 {[%clk 0:02:35]} 13... Qc7 {[%clk 0:02:23.8]} 14. Bh3 {[%clk 0:02:27.2]}
14... b4 {[%clk 0:02:16.9]} 15. Nd5 {[%clk 0:02:25.5]} 15... Bxd5 {[%clk
0:02:16.3]} 16. Qxd5 {[%clk 0:02:22.8]} 16... Rac8 {[%clk 0:02:13.9]} 17. Rd2
{[%clk 0:02:13.1]} 17... g6 {[%clk 0:01:43.5]} 18. Bxd7 {[%clk 0:01:57.3]} 18...
Qxd7 {[%clk 0:01:39.3]} 19. Qxe5 {[%clk 0:01:57.3]} 19... Rxc2+ {[%clk
0:01:33.5]} 0-1